[Event "Titled Tuesday Blitz April 12 Early 2022"]
[White "Legenia, Artem"]
[Black "Ezat, Mohamed"]
[WhiteFideId "14136945"]
[BlackFideId "10600906"]
[WhiteElo "1936"]
[BlackElo "2386"]
[Result "0-1"]
[Round "03"]
[TimeControl "180+1"]
[Date "2022.04.13"]
[WhiteClock "0:01:22"]
[BlackClock "0:01:25"]

1. c4 {[%clk 0:03:00]}  Nf6 {[%clk 0:02:54]} 2. b3 {[%clk 0:02:46]}  g6 {[%clk 0:02:53]} 3. Bb2 {[%clk 0:02:46]}  Bg7 {[%clk 0:02:54]} 4. g3 {[%clk 0:02:46]}  O-O {[%clk 0:02:54]} 5. Bg2 {[%clk 0:02:46]}  c5 {[%clk 0:02:54]} 6. d3 {[%clk 0:02:42]}  Nc6 {[%clk 0:02:54]} 7. a3 {[%clk 0:02:41]}  d5 {[%clk 0:02:51]} 8. cxd5 {[%clk 0:02:41]}  Nxd5 {[%clk 0:02:51]} 9. Bxg7 {[%clk 0:02:41]}  Kxg7 {[%clk 0:02:52]} 10. Nd2 {[%clk 0:02:40]}  e6 {[%clk 0:02:42]} 11. Ngf3 {[%clk 0:02:39]}  b6 {[%clk 0:02:38]} 12. Qc2 {[%clk 0:02:36]}  Bb7 {[%clk 0:02:37]} 13. O-O {[%clk 0:02:36]}  Rc8 {[%clk 0:02:36]} 14. e3 {[%clk 0:02:35]}  Ba6 {[%clk 0:02:34]} 15. Nc4 {[%clk 0:02:33]}  Qf6 {[%clk 0:02:31]} 16. Rac1 {[%clk 0:02:29]}  Rfd8 {[%clk 0:02:30]} 17. Rfd1 {[%clk 0:02:28]}  h5 {[%clk 0:02:25]} 18. Qb2 {[%clk 0:02:18]}  Qxb2 {[%clk 0:02:18]} 19. Nxb2 {[%clk 0:02:18]}  Na5 {[%clk 0:02:18]} 20. Nd2 {[%clk 0:02:17]}  Ne7 {[%clk 0:02:06]} 21. Bf1 {[%clk 0:02:16]}  Nec6 {[%clk 0:02:05]} 22. Rc2 {[%clk 0:02:09]}  Ne5 {[%clk 0:02:04]} 23. Rc3 {[%clk 0:01:53]}  h4 {[%clk 0:01:52]} 24. Rdc1 {[%clk 0:01:47]}  hxg3 {[%clk 0:01:51]} 25. hxg3 {[%clk 0:01:47]}  Nb7 {[%clk 0:01:40]} 26. d4 {[%clk 0:01:37]}  Bxf1 {[%clk 0:01:39]} 27. Kxf1 {[%clk 0:01:32]}  Rh8 {[%clk 0:01:30]} 28. dxe5 {[%clk 0:01:31]}  Rcd8 {[%clk 0:01:30]} 29. Rd3 {[%clk 0:01:27]}  Rh1+ {[%clk 0:01:25]} 30. Ke2 {[%clk 0:01:22]}  Rxc1 {[%clk 0:01:25]} 0-1


[Site "https://www.chess.com"]

[Event "Titled Tuesday Blitz April 12 Early 2022"]
[White "Lianes Garcia, Marcos"]
[Black "Kadam, Om Manish"]
[WhiteFideId "32060777"]
[BlackFideId "45076294"]
[WhiteElo "2310"]
[BlackElo "1729"]
[Result "0-1"]
[Round "03"]
[TimeControl "180+1"]
[Date "2022.04.13"]
[WhiteClock "0:00:09"]
[BlackClock "0:00:22"]

1. e4 {[%clk 0:03:00]}  c6 {[%clk 0:02:51]} 2. g3 {[%clk 0:02:55]}  d5 {[%clk 0:02:51]} 3. Bg2 {[%clk 0:02:56]}  dxe4 {[%clk 0:02:51]} 4. Bxe4 {[%clk 0:02:57]}  Nf6 {[%clk 0:02:52]} 5. Bg2 {[%clk 0:02:58]}  g6 {[%clk 0:02:52]} 6. d4 {[%clk 0:02:58]}  Bg7 {[%clk 0:02:53]} 7. Ne2 {[%clk 0:02:59]}  O-O {[%clk 0:02:53]} 8. O-O {[%clk 0:02:59]}  Be6 {[%clk 0:02:53]} 9. Re1 {[%clk 0:02:58]}  Bd5 {[%clk 0:02:53]} 10. f3 {[%clk 0:02:58]}  Nbd7 {[%clk 0:02:49]} 11. Nbc3 {[%clk 0:02:58]}  Re8 {[%clk 0:02:42]} 12. Be3 {[%clk 0:02:53]}  e5 {[%clk 0:02:42]} 13. Nxd5 {[%clk 0:02:53]}  Nxd5 {[%clk 0:02:42]} 14. Bf2 {[%clk 0:02:54]}  exd4 {[%clk 0:02:39]} 15. Nxd4 {[%clk 0:02:49]}  Rxe1+ {[%clk 0:02:38]} 16. Qxe1 {[%clk 0:02:50]}  Qf8 {[%clk 0:02:32]} 17. c3 {[%clk 0:02:48]}  Re8 {[%clk 0:02:31]} 18. Qd2 {[%clk 0:02:48]}  Ne5 {[%clk 0:02:32]} 19. b3 {[%clk 0:02:41]}  Rd8 {[%clk 0:02:30]} 20. Qc2 {[%clk 0:02:36]}  a6 {[%clk 0:02:22]} 21. h3 {[%clk 0:02:34]}  c5 {[%clk 0:02:08]} 22. Ne2 {[%clk 0:02:34]}  c4 {[%clk 0:02:08]} 23. Bd4 {[%clk 0:02:24]}  b5 {[%clk 0:02:06]} 24. Rd1 {[%clk 0:02:17]}  Nd3 {[%clk 0:02:03]} 25. Qd2 {[%clk 0:02:08]}  Bxd4+ {[%clk 0:01:58]} 26. Nxd4 {[%clk 0:02:09]}  Qc5 {[%clk 0:01:59]} 27. bxc4 {[%clk 0:02:03]}  bxc4 {[%clk 0:01:57]} 28. Kh2 {[%clk 0:01:36]}  Nxc3 {[%clk 0:01:54]} 29. Ne6 {[%clk 0:01:20]}  fxe6 {[%clk 0:01:31]} 30. Qxc3 {[%clk 0:01:20]}  Qd4 {[%clk 0:01:32]} 31. Qc2 {[%clk 0:01:19]}  Rd5 {[%clk 0:01:29]} 32. a3 {[%clk 0:01:15]}  Qc5 {[%clk 0:01:20]} 33. Rb1 {[%clk 0:01:10]}  Rd7 {[%clk 0:01:16]} 34. Rb8+ {[%clk 0:01:08]}  Kg7 {[%clk 0:01:16]} 35. h4 {[%clk 0:00:46]}  Qe5 {[%clk 0:01:15]} 36. Rc8 {[%clk 0:00:39]}  Ne1 {[%clk 0:00:56]} 37. Qxc4 {[%clk 0:00:38]}  Rd2 {[%clk 0:00:44]} 38. Rc7+ {[%clk 0:00:38]}  Kh6 {[%clk 0:00:43]} 39. Kh3 {[%clk 0:00:24]}  Nxg2 {[%clk 0:00:36]} 40. Qc1 {[%clk 0:00:24]}  Nf4+ {[%clk 0:00:20]} 41. gxf4 {[%clk 0:00:20]}  Qxf4 {[%clk 0:00:21]} 42. Qg1 {[%clk 0:00:09]}  Qxf3+ {[%clk 0:00:21]} 43. Qg3 {[%clk 0:00:09]}  Qf1+ {[%clk 0:00:21]} 44. Kg4 {[%clk 0:00:09]}  Qf5# {[%clk 0:00:22]} 0-1


[Site "https://www.chess.com"]

[Event "Titled Tuesday Blitz April 12 Early 2022"]
[White "Liyanage, Ranindu Dilshan"]
[Black "Le Ruyet, Leopold"]
[WhiteFideId "9915834"]
[BlackFideId "645923"]
[WhiteElo "1858"]
[BlackElo "2276"]
[Result "0-1"]
[Round "03"]
[TimeControl "180+1"]
[Date "2022.04.13"]
[WhiteClock "0:00:09"]
[BlackClock "0:00:11"]

1. e4 {[%clk 0:02:55]}  e5 {[%clk 0:02:59]} 2. Nf3 {[%clk 0:02:54]}  Nc6 {[%clk 0:02:58]} 3. d4 {[%clk 0:02:55]}  exd4 {[%clk 0:02:57]} 4. Nxd4 {[%clk 0:02:56]}  Qf6 {[%clk 0:02:57]} 5. Nf3 {[%clk 0:02:56]}  Bc5 {[%clk 0:02:56]} 6. Nc3 {[%clk 0:02:52]}  Nge7 {[%clk 0:02:53]} 7. Bg5 {[%clk 0:02:50]}  Qg6 {[%clk 0:02:51]} 8. Qd2 {[%clk 0:02:50]}  h6 {[%clk 0:02:48]} 9. Bf4 {[%clk 0:02:48]}  d6 {[%clk 0:02:47]} 10. O-O-O {[%clk 0:02:47]}  Be6 {[%clk 0:02:40]} 11. a3 {[%clk 0:02:39]}  a6 {[%clk 0:02:33]} 12. Nd5 {[%clk 0:02:33]}  O-O-O {[%clk 0:02:16]} 13. Re1 {[%clk 0:01:50]}  f5 {[%clk 0:01:56]} 14. Nxe7+ {[%clk 0:01:43]}  Nxe7 {[%clk 0:01:55]} 15. exf5 {[%clk 0:01:44]}  Nxf5 {[%clk 0:01:55]} 16. Bd3 {[%clk 0:01:42]}  Qf7 {[%clk 0:01:54]} 17. g4 {[%clk 0:01:14]}  Ne7 {[%clk 0:01:29]} 18. Nh4 {[%clk 0:00:45]}  g5 {[%clk 0:01:09]} 19. Rxe6 {[%clk 0:00:35]}  Qxe6 {[%clk 0:01:04]} 20. Nf5 {[%clk 0:00:32]}  gxf4 {[%clk 0:00:47]} 21. Re1 {[%clk 0:00:31]}  Be3 {[%clk 0:00:20]} 22. fxe3 {[%clk 0:00:30]}  f3 {[%clk 0:00:20]} 23. e4 {[%clk 0:00:30]}  Nc6 {[%clk 0:00:20]} 24. Qf2 {[%clk 0:00:23]}  Qa2 {[%clk 0:00:17]} 25. Qxf3 {[%clk 0:00:22]}  Qa1+ {[%clk 0:00:17]} 26. Kd2 {[%clk 0:00:22]}  Qxb2 {[%clk 0:00:17]} 27. Ne3 {[%clk 0:00:21]}  Ne5 {[%clk 0:00:14]} 28. Qf5+ {[%clk 0:00:21]}  Kb8 {[%clk 0:00:15]} 29. Qe6 {[%clk 0:00:16]}  Qxa3 {[%clk 0:00:15]} 30. Rb1 {[%clk 0:00:16]}  Qa5+ {[%clk 0:00:15]} 31. Ke2 {[%clk 0:00:15]}  Rhe8 {[%clk 0:00:15]} 32. Qb3 {[%clk 0:00:14]}  b6 {[%clk 0:00:14]} 33. Qb2 {[%clk 0:00:11]}  Nxd3 {[%clk 0:00:13]} 34. cxd3 {[%clk 0:00:12]}  Qe5 {[%clk 0:00:12]} 35. Qa2 {[%clk 0:00:11]}  Qxh2+ {[%clk 0:00:12]} 36. Kd1 {[%clk 0:00:12]}  Qxa2 {[%clk 0:00:12]} 37. Rc1 {[%clk 0:00:11]}  Qa4+ {[%clk 0:00:12]} 38. Ke2 {[%clk 0:00:12]}  Qd4 {[%clk 0:00:12]} 39. Nc4 {[%clk 0:00:09]}  d5 {[%clk 0:00:11]} 0-1


[Site "https://www.chess.com"]

[Event "Titled Tuesday Blitz April 12 Early 2022"]
[White "Lopez, Henry"]
[Black "Pinheiro, Iung Alicio de O."]
[WhiteFideId "5203830"]
[BlackFideId "2104350"]
[WhiteElo "2177"]
[BlackElo "2595"]
[Result "0-1"]
[Round "03"]
[TimeControl "180+1"]
[Date "2022.04.13"]
[WhiteClock "0:00:09"]
[BlackClock "0:00:10"]

1. d4 {[%clk 0:03:00]}  Nf6 {[%clk 0:02:59]} 2. Nf3 {[%clk 0:03:00]}  g6 {[%clk 0:02:58]} 3. c4 {[%clk 0:02:59]}  Bg7 {[%clk 0:02:58]} 4. Nc3 {[%clk 0:02:59]}  d5 {[%clk 0:02:59]} 5. h4 {[%clk 0:02:58]}  dxc4 {[%clk 0:02:49]} 6. e4 {[%clk 0:02:56]}  c5 {[%clk 0:02:48]} 7. d5 {[%clk 0:02:53]}  b5 {[%clk 0:02:48]} 8. h5 {[%clk 0:02:44]}  b4 {[%clk 0:02:37]} 9. h6 {[%clk 0:02:44]}  Bf8 {[%clk 0:02:36]} 10. e5 {[%clk 0:02:43]}  bxc3 {[%clk 0:02:35]} 11. exf6 {[%clk 0:02:43]}  exf6 {[%clk 0:02:34]} 12. Bxc4 {[%clk 0:02:34]}  Bd6 {[%clk 0:02:33]} 13. bxc3 {[%clk 0:02:26]}  O-O {[%clk 0:02:32]} 14. O-O {[%clk 0:02:24]}  Nd7 {[%clk 0:02:25]} 15. Re1 {[%clk 0:02:13]}  Nb6 {[%clk 0:02:24]} 16. Qb3 {[%clk 0:01:56]}  Rb8 {[%clk 0:02:08]} 17. Bd2 {[%clk 0:01:38]}  Nxd5 {[%clk 0:01:57]} 18. Qa3 {[%clk 0:01:33]}  Nb6 {[%clk 0:01:57]} 19. Bf1 {[%clk 0:01:28]}  Bb7 {[%clk 0:01:51]} 20. c4 {[%clk 0:01:20]}  Bxf3 {[%clk 0:01:43]} 21. Qxf3 {[%clk 0:01:19]}  Bh2+ {[%clk 0:01:37]} 22. Kxh2 {[%clk 0:01:16]}  Qxd2 {[%clk 0:01:38]} 23. Re3 {[%clk 0:01:05]}  Qd6+ {[%clk 0:01:25]} 24. Kg1 {[%clk 0:01:03]}  Rbd8 {[%clk 0:01:20]} 25. Rae1 {[%clk 0:01:02]}  Nd7 {[%clk 0:01:05]} 26. Qb7 {[%clk 0:00:48]}  Qf4 {[%clk 0:00:53]} 27. Qxa7 {[%clk 0:00:39]}  Qxh6 {[%clk 0:00:50]} 28. Re7 {[%clk 0:00:39]}  Ne5 {[%clk 0:00:49]} 29. Qxc5 {[%clk 0:00:33]}  Ng4 {[%clk 0:00:39]} 30. Qc7 {[%clk 0:00:32]}  Rd2 {[%clk 0:00:37]} 31. R7e2 {[%clk 0:00:29]}  Rd4 {[%clk 0:00:34]} 32. Re4 {[%clk 0:00:27]}  Rxe4 {[%clk 0:00:30]} 33. Rxe4 {[%clk 0:00:26]}  f5 {[%clk 0:00:31]} 34. Rd4 {[%clk 0:00:25]}  Qh4 {[%clk 0:00:28]} 35. Qf4 {[%clk 0:00:20]}  Re8 {[%clk 0:00:23]} 36. Rd1 {[%clk 0:00:18]}  g5 {[%clk 0:00:14]} 37. Qg3 {[%clk 0:00:18]}  Qxg3 {[%clk 0:00:13]} 38. fxg3 {[%clk 0:00:18]}  Ne3 {[%clk 0:00:12]} 39. Re1 {[%clk 0:00:18]}  f4 {[%clk 0:00:13]} 40. gxf4 {[%clk 0:00:18]}  gxf4 {[%clk 0:00:14]} 41. Kf2 {[%clk 0:00:18]}  Ra8 {[%clk 0:00:14]} 42. Re2 {[%clk 0:00:16]}  Nxc4 {[%clk 0:00:14]} 43. Re4 {[%clk 0:00:16]}  Rxa2+ {[%clk 0:00:13]} 44. Kg1 {[%clk 0:00:16]}  Ne3 {[%clk 0:00:13]} 45. Rxf4 {[%clk 0:00:16]}  Ra1 {[%clk 0:00:14]} 46. g3 {[%clk 0:00:16]}  Kg7 {[%clk 0:00:14]} 47. Rf3 {[%clk 0:00:14]}  Rxf1+ {[%clk 0:00:13]} 48. Rxf1 {[%clk 0:00:14]}  Nxf1 {[%clk 0:00:14]} 49. Kxf1 {[%clk 0:00:15]}  Kg6 {[%clk 0:00:15]} 50. Kg2 {[%clk 0:00:15]}  Kg5 {[%clk 0:00:16]} 51. Kf3 {[%clk 0:00:16]}  Kf5 {[%clk 0:00:16]} 52. Kg2 {[%clk 0:00:15]}  Kg4 {[%clk 0:00:16]} 53. Kf2 {[%clk 0:00:14]}  h5 {[%clk 0:00:15]} 54. Kg2 {[%clk 0:00:15]}  h4 {[%clk 0:00:08]} 55. gxh4 {[%clk 0:00:14]}  Kxh4 {[%clk 0:00:09]} 56. Kf3 {[%clk 0:00:13]}  Kg5 {[%clk 0:00:09]} 57. Kg3 {[%clk 0:00:12]}  f6 {[%clk 0:00:09]} 58. Kf3 {[%clk 0:00:10]}  Kf5 {[%clk 0:00:10]} 59. Kg3 {[%clk 0:00:10]}  Ke4 {[%clk 0:00:10]} 60. Kf2 {[%clk 0:00:10]}  Kf4 {[%clk 0:00:10]} 61. Kf1 {[%clk 0:00:09]}  Kf3 {[%clk 0:00:10]} 62. Kg1 {[%clk 0:00:10]}  f5 {[%clk 0:00:10]} 63. Kf1 {[%clk 0:00:10]}  f4 {[%clk 0:00:10]} 64. Kg1 {[%clk 0:00:09]}  Ke2 {[%clk 0:00:10]} 0-1


[Site "https://www.chess.com"]

[Event "Titled Tuesday Blitz April 12 Early 2022"]
[White "Maevsky, Nikolay"]
[Black "Garagulya, Konstantin"]
[WhiteFideId "4198220"]
[BlackFideId "4128931"]
[WhiteElo "2126"]
[BlackElo "2329"]
[Result "1-0"]
[Round "03"]
[TimeControl "180+1"]
[Date "2022.04.13"]
[WhiteClock "0:00:04"]
[BlackClock "0:00:03"]

1. d4 {[%clk 0:03:00]}  Nf6 {[%clk 0:02:55]} 2. Nf3 {[%clk 0:03:01]}  e6 {[%clk 0:02:56]} 3. e3 {[%clk 0:03:02]}  c5 {[%clk 0:02:56]} 4. Bd3 {[%clk 0:03:02]}  b6 {[%clk 0:02:55]} 5. c4 {[%clk 0:03:03]}  Bb7 {[%clk 0:02:56]} 6. O-O {[%clk 0:03:02]}  d5 {[%clk 0:02:52]} 7. cxd5 {[%clk 0:02:59]}  Nxd5 {[%clk 0:02:52]} 8. Bb5+ {[%clk 0:02:52]}  Bc6 {[%clk 0:02:51]} 9. Bxc6+ {[%clk 0:02:49]}  Nxc6 {[%clk 0:02:52]} 10. dxc5 {[%clk 0:02:44]}  Bxc5 {[%clk 0:02:51]} 11. a3 {[%clk 0:02:44]}  O-O {[%clk 0:02:51]} 12. e4 {[%clk 0:02:37]}  Nf6 {[%clk 0:02:49]} 13. Qc2 {[%clk 0:02:37]}  Nd4 {[%clk 0:02:38]} 14. Nxd4 {[%clk 0:02:37]}  Qxd4 {[%clk 0:02:28]} 15. Nc3 {[%clk 0:02:35]}  Rac8 {[%clk 0:02:19]} 16. Be3 {[%clk 0:02:33]}  Qe5 {[%clk 0:02:17]} 17. Bxc5 {[%clk 0:02:30]}  Rxc5 {[%clk 0:01:59]} 18. Qe2 {[%clk 0:02:30]}  Rfc8 {[%clk 0:01:57]} 19. Rad1 {[%clk 0:02:28]}  Rc4 {[%clk 0:01:50]} 20. Rfe1 {[%clk 0:02:24]}  g5 {[%clk 0:01:45]} 21. h3 {[%clk 0:02:23]}  b5 {[%clk 0:01:35]} 22. Rd3 {[%clk 0:01:49]}  Kg7 {[%clk 0:01:32]} 23. Rg3 {[%clk 0:01:39]}  h6 {[%clk 0:01:32]} 24. Re3 {[%clk 0:01:36]}  a5 {[%clk 0:01:28]} 25. Qf3 {[%clk 0:01:08]}  R8c6 {[%clk 0:01:09]} 26. g3 {[%clk 0:01:04]}  b4 {[%clk 0:00:53]} 27. axb4 {[%clk 0:01:04]}  axb4 {[%clk 0:00:54]} 28. Nd1 {[%clk 0:01:04]}  Rd4 {[%clk 0:00:43]} 29. b3 {[%clk 0:00:56]}  Rc1 {[%clk 0:00:38]} 30. Qe2 {[%clk 0:00:49]}  Qc5 {[%clk 0:00:20]} 31. Nb2 {[%clk 0:00:30]}  Rc2 {[%clk 0:00:19]} 32. Na4 {[%clk 0:00:26]}  Rxe2 {[%clk 0:00:17]} 33. Nxc5 {[%clk 0:00:26]}  Rxe1+ {[%clk 0:00:16]} 34. Rxe1 {[%clk 0:00:26]}  Nd7 {[%clk 0:00:11]} 35. Nxd7 {[%clk 0:00:23]}  Rxd7 {[%clk 0:00:12]} 36. e5 {[%clk 0:00:23]}  Rd3 {[%clk 0:00:12]} 37. Re4 {[%clk 0:00:17]}  Rxb3 {[%clk 0:00:12]} 38. Rc4 {[%clk 0:00:17]}  Kg6 {[%clk 0:00:11]} 39. g4 {[%clk 0:00:17]}  Rb1+ {[%clk 0:00:10]} 40. Kg2 {[%clk 0:00:17]}  b3 {[%clk 0:00:10]} 41. Rb4 {[%clk 0:00:18]}  h5 {[%clk 0:00:08]} 42. Kh2 {[%clk 0:00:17]}  h4 {[%clk 0:00:07]} 43. Kg2 {[%clk 0:00:18]}  Rb2 {[%clk 0:00:07]} 44. Rb6 {[%clk 0:00:17]}  Re2 {[%clk 0:00:06]} 45. Rxb3 {[%clk 0:00:17]}  Rxe5 {[%clk 0:00:07]} 46. Rf3 {[%clk 0:00:17]}  Rd5 {[%clk 0:00:08]} 47. Re3 {[%clk 0:00:17]}  Rd4 {[%clk 0:00:07]} 48. Re5 {[%clk 0:00:17]}  Rf4 {[%clk 0:00:06]} 49. Re3 {[%clk 0:00:17]}  Kf6 {[%clk 0:00:06]} 50. Rd3 {[%clk 0:00:17]}  Rc4 {[%clk 0:00:06]} 51. Rf3+ {[%clk 0:00:16]}  Ke7 {[%clk 0:00:05]} 52. Re3 {[%clk 0:00:17]}  Rf4 {[%clk 0:00:05]} 53. Re5 {[%clk 0:00:17]}  f6 {[%clk 0:00:05]} 54. Ra5 {[%clk 0:00:17]}  Kf7 {[%clk 0:00:05]} 55. Ra7+ {[%clk 0:00:17]}  Kg6 {[%clk 0:00:06]} 56. Ra6 {[%clk 0:00:18]}  e5 {[%clk 0:00:06]} 57. Ra3 {[%clk 0:00:18]}  Rd4 {[%clk 0:00:06]} 58. Ra6 {[%clk 0:00:17]}  Kf7 {[%clk 0:00:05]} 59. Rb6 {[%clk 0:00:17]}  Ke7 {[%clk 0:00:04]} 60. Ra6 {[%clk 0:00:16]}  Rd6 {[%clk 0:00:05]} 61. Ra7+ {[%clk 0:00:16]}  Ke6 {[%clk 0:00:06]} 62. Ra8 {[%clk 0:00:15]}  Kd5 {[%clk 0:00:06]} 63. Ra4 {[%clk 0:00:13]}  Rc6 {[%clk 0:00:05]} 64. Ra8 {[%clk 0:00:13]}  Ke4 {[%clk 0:00:04]} 65. Ra4+ {[%clk 0:00:13]}  Kd5 {[%clk 0:00:04]} 66. Ra8 {[%clk 0:00:13]}  Kd4 {[%clk 0:00:05]} 67. Rd8+ {[%clk 0:00:13]}  Ke4 {[%clk 0:00:05]} 68. Ra8 {[%clk 0:00:13]}  Kf4 {[%clk 0:00:04]} 69. Ra4+ {[%clk 0:00:12]}  e4 {[%clk 0:00:05]} 70. Ra5 {[%clk 0:00:13]}  e3 {[%clk 0:00:03]} 71. Ra4+ {[%clk 0:00:07]}  Ke5 {[%clk 0:00:04]} 72. fxe3 {[%clk 0:00:07]}  Rc2+ {[%clk 0:00:04]} 73. Kg1 {[%clk 0:00:03]}  Re2 {[%clk 0:00:04]} 74. Ra5+ {[%clk 0:00:01]}  Ke6 {[%clk 0:00:03]} 75. Rf5 {[%clk 0:00:02]}  Rxe3 {[%clk 0:00:03]} 76. Kg2 {[%clk 0:00:02]}  Re5 {[%clk 0:00:02]} 77. Rf3 {[%clk 0:00:03]}  Re4 {[%clk 0:00:02]} 78. Rf5 {[%clk 0:00:03]}  Rd4 {[%clk 0:00:02]} 79. Ra5 {[%clk 0:00:03]}  Rd5 {[%clk 0:00:02]} 80. Ra6+ {[%clk 0:00:03]}  Ke5 {[%clk 0:00:02]} 81. Ra7 {[%clk 0:00:03]}  Rd2+ {[%clk 0:00:03]} 82. Kh1 {[%clk 0:00:03]}  Rd3 {[%clk 0:00:04]} 83. Ra5+ {[%clk 0:00:03]}  Kf4 {[%clk 0:00:03]} 84. Rf5+ {[%clk 0:00:03]}  Kg3 {[%clk 0:00:03]} 85. Rf1 {[%clk 0:00:03]}  Kxh3 {[%clk 0:00:03]} 86. Kg1 {[%clk 0:00:03]}  Kxg4 {[%clk 0:00:03]} 87. Rxf6 {[%clk 0:00:03]}  Rd1+ {[%clk 0:00:03]} 88. Kh2 {[%clk 0:00:04]}  Rd2+ {[%clk 0:00:03]} 89. Kh1 {[%clk 0:00:03]}  Kg3 {[%clk 0:00:03]} 90. Rf1 {[%clk 0:00:04]}  h3 {[%clk 0:00:03]} 91. Rg1+ {[%clk 0:00:04]}  Kh4 {[%clk 0:00:03]} 92. Rf1 {[%clk 0:00:04]} 1-0


[Site "https://www.chess.com"]

[Event "Titled Tuesday Blitz April 12 Early 2022"]
[White "Manukian, Artak"]
[Black "Piliczewski, Bogusz"]
[WhiteFideId "13301373"]
[BlackFideId "1104144"]
[WhiteElo "2361"]
[BlackElo "1896"]
[Result "0-1"]
[Round "03"]
[TimeControl "180+1"]
[Date "2022.04.13"]
[WhiteClock "0:00:09"]
[BlackClock "0:00:40"]

1. e4 {[%clk 0:02:59]}  c6 {[%clk 0:03:00]} 2. d4 {[%clk 0:02:59]}  d5 {[%clk 0:03:00]} 3. e5 {[%clk 0:03:00]}  c5 {[%clk 0:02:59]} 4. dxc5 {[%clk 0:02:59]}  e6 {[%clk 0:03:00]} 5. a3 {[%clk 0:02:59]}  Bxc5 {[%clk 0:02:57]} 6. b4 {[%clk 0:02:59]}  Bb6 {[%clk 0:02:56]} 7. c4 {[%clk 0:03:00]}  dxc4 {[%clk 0:02:54]} 8. Qxd8+ {[%clk 0:02:59]}  Bxd8 {[%clk 0:02:54]} 9. Bxc4 {[%clk 0:03:00]}  Bc7 {[%clk 0:02:53]} 10. f4 {[%clk 0:02:59]}  Nc6 {[%clk 0:02:48]} 11. Bb2 {[%clk 0:02:58]}  Nge7 {[%clk 0:02:45]} 12. Nf3 {[%clk 0:02:56]}  O-O {[%clk 0:02:44]} 13. Nbd2 {[%clk 0:02:55]}  a6 {[%clk 0:02:44]} 14. Ne4 {[%clk 0:02:54]}  b5 {[%clk 0:02:43]} 15. Bd3 {[%clk 0:02:48]}  Nf5 {[%clk 0:02:43]} 16. Ke2 {[%clk 0:02:48]}  Rd8 {[%clk 0:02:36]} 17. Rac1 {[%clk 0:02:39]}  Bb7 {[%clk 0:02:20]} 18. Nc5 {[%clk 0:02:38]}  Bc8 {[%clk 0:02:13]} 19. Nxe6 {[%clk 0:02:26]}  Bxe6 {[%clk 0:02:08]} 20. Rxc6 {[%clk 0:02:26]}  Rac8 {[%clk 0:01:58]} 21. Rhc1 {[%clk 0:02:24]}  Bb8 {[%clk 0:01:56]} 22. Rxc8 {[%clk 0:02:18]}  Rxc8 {[%clk 0:01:56]} 23. Rxc8+ {[%clk 0:02:17]}  Bxc8 {[%clk 0:01:56]} 24. Be4 {[%clk 0:02:17]}  Ne7 {[%clk 0:01:52]} 25. Nd4 {[%clk 0:02:15]}  f6 {[%clk 0:01:45]} 26. exf6 {[%clk 0:02:14]}  gxf6 {[%clk 0:01:44]} 27. Nc6 {[%clk 0:02:14]}  Nxc6 {[%clk 0:01:43]} 28. Bxc6 {[%clk 0:02:14]}  Bxf4 {[%clk 0:01:44]} 29. Bxf6 {[%clk 0:02:12]}  Bxh2 {[%clk 0:01:44]} 30. Kf3 {[%clk 0:02:04]}  Bd6 {[%clk 0:01:42]} 31. Ke4 {[%clk 0:01:59]}  Kf7 {[%clk 0:01:41]} 32. Be5 {[%clk 0:01:59]}  Bf8 {[%clk 0:01:37]} 33. Bd5+ {[%clk 0:01:54]}  Kg6 {[%clk 0:01:33]} 34. Bf4 {[%clk 0:01:51]}  Kf6 {[%clk 0:01:31]} 35. Kd4 {[%clk 0:01:50]}  Kf5 {[%clk 0:01:28]} 36. Bc7 {[%clk 0:01:49]}  h5 {[%clk 0:01:23]} 37. Bf3 {[%clk 0:01:48]}  h4 {[%clk 0:01:22]} 38. Bd8 {[%clk 0:01:48]}  Bg7+ {[%clk 0:01:19]} 39. Kc5 {[%clk 0:01:46]}  Bb2 {[%clk 0:01:18]} 40. Bxh4 {[%clk 0:01:39]}  Bxa3 {[%clk 0:01:18]} 41. Be1 {[%clk 0:01:40]}  Ke5 {[%clk 0:01:14]} 42. Kb6 {[%clk 0:01:39]}  Kd4 {[%clk 0:01:09]} 43. g4 {[%clk 0:01:35]}  Kc4 {[%clk 0:01:08]} 44. Be2+ {[%clk 0:01:19]}  Kb3 {[%clk 0:01:07]} 45. Ka5 {[%clk 0:01:19]}  Bc1 {[%clk 0:01:04]} 46. Kb6 {[%clk 0:01:03]}  Bf4 {[%clk 0:01:00]} 47. Kc5 {[%clk 0:00:51]}  Be3+ {[%clk 0:00:58]} 48. Kc6 {[%clk 0:00:49]}  Bf4 {[%clk 0:00:57]} 49. Bf1 {[%clk 0:00:44]}  Be5 {[%clk 0:00:55]} 50. g5 {[%clk 0:00:43]}  Bc3 {[%clk 0:00:50]} 51. Bxc3 {[%clk 0:00:39]}  Kxc3 {[%clk 0:00:50]} 52. Kc5 {[%clk 0:00:39]}  Bf5 {[%clk 0:00:44]} 53. Be2 {[%clk 0:00:37]}  Bg6 {[%clk 0:00:44]} 54. Bf3 {[%clk 0:00:27]}  Bd3 {[%clk 0:00:41]} 55. Bb7 {[%clk 0:00:25]}  a5 {[%clk 0:00:41]} 56. bxa5 {[%clk 0:00:24]}  b4 {[%clk 0:00:41]} 57. a6 {[%clk 0:00:09]}  Bxa6 {[%clk 0:00:40]} 0-1


[Site "https://www.chess.com"]

[Event "Titled Tuesday Blitz April 12 Early 2022"]
[White "Manukyan, Sargis A."]
[Black "Rodchenkov, Vitaly"]
[WhiteFideId "13303970"]
[BlackFideId "4152964"]
[WhiteElo "2187"]
[BlackElo "2337"]
[Result "1-0"]
[Round "03"]
[TimeControl "180+1"]
[Date "2022.04.13"]
[WhiteClock "0:01:50"]
[BlackClock "0:00:17"]

1. d4 {[%clk 0:03:00]}  Nf6 {[%clk 0:02:11]} 2. e3 {[%clk 0:03:00]}  e6 {[%clk 0:02:12]} 3. Nf3 {[%clk 0:03:00]}  Be7 {[%clk 0:02:10]} 4. Be2 {[%clk 0:03:01]}  b6 {[%clk 0:02:11]} 5. O-O {[%clk 0:03:02]}  Bb7 {[%clk 0:02:12]} 6. b3 {[%clk 0:03:03]}  d6 {[%clk 0:02:12]} 7. Bb2 {[%clk 0:03:04]}  Kf8 {[%clk 0:02:13]} 8. Nbd2 {[%clk 0:03:04]}  g6 {[%clk 0:02:11]} 9. c4 {[%clk 0:03:04]}  Kg7 {[%clk 0:02:09]} 10. Qc2 {[%clk 0:03:04]}  Nbd7 {[%clk 0:02:08]} 11. Rac1 {[%clk 0:03:03]}  c5 {[%clk 0:01:59]} 12. Rfd1 {[%clk 0:03:02]}  Rc8 {[%clk 0:01:58]} 13. h3 {[%clk 0:03:02]}  h5 {[%clk 0:01:33]} 14. Qb1 {[%clk 0:03:00]}  Ne8 {[%clk 0:01:21]} 15. dxc5+ {[%clk 0:02:53]}  Bf6 {[%clk 0:01:14]} 16. cxd6 {[%clk 0:02:50]}  Nxd6 {[%clk 0:01:13]} 17. Nf1 {[%clk 0:02:45]}  Qc7 {[%clk 0:00:59]} 18. Bxf6+ {[%clk 0:02:18]}  Nxf6 {[%clk 0:00:58]} 19. Qb2 {[%clk 0:02:19]}  Ne4 {[%clk 0:00:55]} 20. N1d2 {[%clk 0:02:13]}  Nxd2 {[%clk 0:00:53]} 21. Rxd2 {[%clk 0:02:13]}  Rhd8 {[%clk 0:00:52]} 22. Rcd1 {[%clk 0:02:13]}  Rxd2 {[%clk 0:00:50]} 23. Rxd2 {[%clk 0:02:14]}  Rd8 {[%clk 0:00:51]} 24. Rxd8 {[%clk 0:02:13]}  Qxd8 {[%clk 0:00:51]} 25. Qd4 {[%clk 0:02:14]}  Qxd4 {[%clk 0:00:50]} 26. Nxd4 {[%clk 0:02:09]}  Ne4 {[%clk 0:00:48]} 27. Bf3 {[%clk 0:02:08]}  Nc5 {[%clk 0:00:47]} 28. Bxb7 {[%clk 0:02:08]}  Nxb7 {[%clk 0:00:46]} 29. Nc6 {[%clk 0:01:58]}  a6 {[%clk 0:00:42]} 30. Nb8 {[%clk 0:01:58]}  a5 {[%clk 0:00:34]} 31. Nd7 {[%clk 0:01:58]}  b5 {[%clk 0:00:32]} 32. cxb5 {[%clk 0:01:53]}  Nd6 {[%clk 0:00:31]} 33. b6 {[%clk 0:01:50]}  f5 {[%clk 0:00:27]} 34. Nc5 {[%clk 0:01:50]}  Ne8 {[%clk 0:00:17]} 35. b7 {[%clk 0:01:50]} 1-0


[Site "https://www.chess.com"]